bitfinex/quotes_SOLUSD_20240601
["timestamp","ask_amount","ask_price","bid_price","bid_amount"]
[1717258318678,2.2093,167.47,167.41,6.16]
[1717258319188,2.2093,167.47,167.4,6.16]
[1717258319398,6.6221,167.48,167.38,8.96747215]
[1717258319587,8.3699,167.43,167.37,8.96747215]
[1717258319792,8.3699,167.43,167.37,8.96869351]
[1717258319793,2.2099,167.43,167.37,8.96869351]
[1717258319979,8.3699,167.43,167.37,8.96869351]
[1717258320291,8.3699,167.43,167.35,8.96869351]
[1717258320495,8.3699,167.43,167.37,6.16]
[1717258321580,6.16,167.43,167.37,6.16]
[1717258321767,8.3697,167.44,167.37,6.16]
[1717258322095,8.3696,167.45,167.39,6.16]
[1717258322297,2.2096,167.45,167.39,6.16]
[1717258323078,2.2096,167.45,167.37,60.0]
[1717258323569,2.2096,167.45,167.39,6.16]
[1717258323769,2.2094,167.46,167.39,6.16]
[1717258324084,8.3694,167.46,167.4,6.16]
[1717258324490,2.2096,167.45,167.37,60.0]
[1717258324798,8.3694,167.46,167.37,60.0]
[1717258325576,8.1994,167.46,167.37,60.0]
[1717258327196,2.2094,167.46,167.37,60.0]
[1717258327492,2.2093,167.47,167.39,60.0]
[1717258327679,8.3693,167.47,167.39,60.0]
[1717258329298,2.2094,167.46,167.4,6.16]
[1717258329467,2.2094,167.46,167.37,77.92]
[1717258329672,2.2094,167.46,167.4,6.16]
[1717258331482,2.2094,167.46,167.37,77.92]
[1717258331483,8.3694,167.46,167.39,6.16]
[1717258331683,6.16,167.45,167.39,6.16]
[1717258333094,8.3696,167.45,167.36,18.09]
[1717258333294,6.16,167.44,167.38,6.16]
[1717258333891,6.6221,167.48,167.34,60.0]
[1717258333892,6.16,167.43,167.34,60.0]
[1717258334090,6.16,167.43,167.36,6.16]
[1717258334278,4.4187,167.47,167.36,6.16]
[1717258334476,6.16,167.43,167.36,6.16]
[1717258335902,6.16,167.43,167.34,60.0]
[1717258336195,6.16,167.41,167.33,18.09]
[1717258336396,6.16,167.41,167.35,6.16]
[1717258337102,6.16,167.41,167.33,18.09]
[1717258337289,6.16,167.41,167.35,6.16]
[1717258337791,6.16,167.41,167.34,6.16]
[1717258338502,6.16,167.41,167.32,60.0]
[1717258338673,6.16,167.41,167.31,33.2187589]
[1717258338880,6.16,167.39,167.33,6.16]
[1717258339497,6.16,167.39,167.31,26.8887589]
[1717258339793,1.19495476,167.38,167.31,8.9687589]
[1717258340098,8.3703,167.4,167.31,8.97078067]
[1717258340679,8.3703,167.4,167.33,6.16]
[1717258340884,2.2103,167.4,167.34,6.16]
[1717258342284,2.2103,167.4,167.31,8.97072162]
[1717258342488,2.2103,167.4,167.34,6.16]
[1717258343204,2.2103,167.4,167.35,6.16]
[1717258343381,8.8547,167.4,167.35,6.16]
[1717258346389,6.6444,167.4,167.34,60.0]
[1717258346696,6.6444,167.4,167.36,6.16]
[1717258347099,2.21,167.42,167.36,6.16]
[1717258347404,2.2101,167.41,167.36,6.16]
[1717258347606,6.4871,167.4,167.35,6.16]
[1717258348186,6.4871,167.4,167.36,6.16]
[1717258349286,6.4871,167.4,167.32,86.8902429]
[1717258349791,6.4871,167.4,167.35,6.16]
[1717258350794,6.4871,167.39,167.34,6.16]
[1717258351608,6.4871,167.39,167.32,86.8902429]
[1717258351810,6.4871,167.39,167.34,6.16]
[1717258353109,6.4871,167.39,167.32,86.8902429]
[1717258353310,6.4871,167.39,167.34,6.16]
[1717258353692,6.4871,167.39,167.32,8.9702429]
[1717258353892,6.4871,167.39,167.33,6.16]
[1717258354397,6.4871,167.39,167.34,6.16]
[1717258357823,6.4871,167.39,167.35,6.16]
[1717258358314,6.4871,167.39,167.33,8.97050628]
[1717258358512,6.4871,167.39,167.35,6.16]
[1717258361897,6.4871,167.39,167.36,6.16]
[1717258362098,2.21,167.42,167.36,6.16]
[1717258362298,6.3435,167.41,167.37,1.01997675]
[1717258362714,6.3435,167.41,167.36,6.16]
[1717258363929,8.5536,167.41,167.36,6.16]
[1717258365624,6.3435,167.4,167.36,6.16]
[1717258365812,6.3435,167.4,167.35,6.16]
[1717258371521,6.3435,167.4,167.33,8.97091128]
[1717258372020,8.5537,167.4,167.35,6.16]
[1717258373326,8.5537,167.4,167.33,8.97091128]
[1717258373535,8.5537,167.4,167.35,6.16]
[1717258374215,8.5537,167.4,167.32,86.89091128]
[1717258374630,8.5537,167.4,167.35,6.16]
[1717258376112,6.3435,167.4,167.35,6.16]
[1717258376835,8.2888,167.41,167.35,6.16]
[1717258377728,14.4488,167.41,167.34,15.13091128]
[1717258378029,8.3703,167.4,167.34,8.97091128]
[1717258378232,1.19495476,167.39,167.33,15.13091128]
[1717258379417,1.19495476,167.39,167.33,15.13120452]
[1717258379811,9.56525476,167.4,167.33,15.13120452]
[1717258380631,9.56525476,167.4,167.33,6.16]
[1717258380826,9.56525476,167.4,167.33,15.13123058]
[1717258381029,3.40525476,167.4,167.34,8.97123058]
[1717258381408,3.40525476,167.4,167.33,15.13123058]
[1717258381614,3.40525476,167.4,167.34,8.97123058]
[1717258381816,3.40525476,167.4,167.33,15.13123058]
[1717258383224,3.40525476,167.4,167.34,15.13123058]
[1717258383422,3.40525476,167.4,167.34,6.16]
[1717258384134,1.19495476,167.4,167.34,6.16]
[1717258384338,3.40515476,167.4,167.34,6.16]
[1717258385817,2.2102,167.4,167.34,6.16]
[1717258389428,2.2102,167.4,167.31,60.0]
[1717258389627,2.2102,167.4,167.34,6.16]
[1717258401838,6.0787,167.41,167.35,6.16]
[1717258401839,8.2888,167.41,167.35,6.16]
[1717258402740,8.2888,167.41,167.36,6.16]
[1717258404971,2.21,167.42,167.37,6.16]
[1717258405138,8.543,167.42,167.37,6.16]
[1717258405340,2.2101,167.41,167.37,6.16]
[1717258407660,2.2101,167.41,167.33,77.92]
[1717258407847,2.2101,167.41,167.37,6.16]
[1717258408957,8.473,167.41,167.37,6.16]
[1717258409265,8.473,167.41,167.36,6.16]
[1717258410956,8.473,167.41,167.34,0.17]
[1717258411465,8.4731,167.4,167.35,6.16]
[1717258411843,8.4731,167.4,167.34,6.16]
[1717258412263,6.2629,167.4,167.29,60.0]
[1717258412433,2.2105,167.38,167.33,6.16]
[1717258412754,6.6037,167.37,167.33,6.16]
[1717258413455,6.6037,167.37,167.31,6.16]
[1717258413851,6.6037,167.37,167.32,6.16]
[1717258414459,6.6037,167.37,167.29,17.92]
[1717258419883,6.6037,167.37,167.3,60.0]
[1717258421047,6.6037,167.37,167.29,17.92]
[1717258428758,6.6037,167.37,167.3,60.0]
[1717258430671,6.6037,167.37,167.29,17.92]
[1717258441195,6.6037,167.37,167.26,65.977]
[1717258441386,2.2109,167.35,167.26,60.0]
[1717258441574,8.3709,167.35,167.28,6.16]
[1717258441772,3.40575476,167.36,167.28,6.16]
[1717258442073,9.56585476,167.35,167.28,6.16]
[1717258442280,6.16,167.34,167.27,6.16]
[1717258443203,8.371,167.34,167.27,6.16]
[1717258443490,22.5534,167.32,167.31,8.97296545]
[1717258444673,24.7647,167.32,167.31,8.97296545]
[1717258444886,30.9247,167.32,167.31,8.97296545]
[1717258449593,28.7134,167.32,167.3,8.97296545]
[1717258449783,29.9714,167.31,167.3,8.97296545]
[1717258453872,23.8114,167.31,167.3,8.97296545]
[1717258454173,29.9714,167.31,167.3,8.97296545]
[1717258454900,29.9714,167.31,167.3,8.97401496]
[1717258455398,29.9714,167.31,167.25,0.0843525]
[1717258456394,8.6057,167.31,167.25,0.0843525]
[1717258456698,2.2114,167.31,167.27,6.16]
[1717258457699,2.2114,167.31,167.25,0.0843525]
[1717258457882,2.2113,167.33,167.27,6.16]
[1717258458084,8.4651,167.33,167.31,8.97403309]
[1717258458285,8.4651,167.33,167.32,8.97403309]
[1717258463584,2.2113,167.32,167.31,8.97403309]
[1717258463779,2.2113,167.32,167.25,0.0843525]
[1717258464002,2.2113,167.32,167.26,6.16]
[1717258464199,8.3713,167.32,167.31,8.97347231]
[1717258464892,8.3713,167.32,167.31,8.97347652]
[1717258466205,14.6251,167.32,167.31,8.97347652]
[1717258466409,30.6328,167.32,167.31,8.97347652]
[1717258466586,30.8028,167.32,167.31,8.97347652]
[1717258467292,31.99775476,167.32,167.31,8.97347652]
[1717258469108,2.2116,167.3,167.25,0.0843525]
[1717258469407,8.3716,167.3,167.25,0.0843525]
[1717258469912,2.2116,167.3,167.25,0.0843525]
[1717258470115,8.3716,167.3,167.25,0.0843525]
[1717258470988,14.8845,167.3,167.25,0.0843525]
[1717258473615,14.8845,167.3,167.26,4.98786141]
[1717258473823,14.8845,167.3,167.27,4.98786141]
[1717258474114,14.8845,167.3,167.28,4.98786141]
[1717258474614,14.8845,167.3,167.29,4.98786141]
[1717258475300,14.8845,167.3,167.26,4.98786141]
[1717258475600,14.8845,167.3,167.27,4.98786141]
[1717258475801,14.8845,167.3,167.26,4.98786141]
[1717258476015,14.8845,167.3,167.27,4.98786141]
[1717258476215,14.8845,167.3,167.26,4.98786141]
[1717258476418,14.8845,167.3,167.27,4.98786141]
[1717258476716,14.8845,167.3,167.26,4.98786141]
[1717258476916,14.8845,167.3,167.27,4.98786141]
[1717258477218,14.8845,167.3,167.28,4.98786141]
[1717258477414,14.8845,167.3,167.26,4.98786141]
[1717258477618,14.8845,167.3,167.27,4.98786141]
[1717258477918,14.8845,167.3,167.26,4.98786141]
[1717258478124,14.8845,167.3,167.27,4.98786141]
[1717258478423,14.8845,167.3,167.25,0.0843525]
[1717258478424,14.8845,167.3,167.28,4.98786141]
[1717258478719,14.8845,167.3,167.26,4.98786141]
[1717258478922,8.7245,167.3,167.27,4.98786141]
[1717258479122,14.8845,167.3,167.26,4.98786141]
[1717258479438,14.8845,167.3,167.27,4.98786141]
[1717258479733,14.8845,167.3,167.28,4.98786141]
[1717258480221,14.8845,167.3,167.29,4.98786141]
[1717258480608,14.8845,167.3,167.26,4.98786141]
[1717258480809,14.8845,167.3,167.27,4.98786141]
[1717258481019,14.8845,167.3,167.25,0.0843525]
[1717258481020,14.8845,167.3,167.26,4.98786141]
[1717258481224,14.8845,167.3,167.27,4.98786141]
[1717258481523,14.8845,167.3,167.28,4.98786141]
[1717258481704,14.8845,167.3,167.26,4.98786141]
[1717258481914,14.8845,167.3,167.27,4.98786141]
[1717258482111,14.8845,167.3,167.28,4.98786141]
[1717258482314,14.8845,167.3,167.26,4.98786141]
[1717258482512,14.8845,167.3,167.27,4.98786141]
[1717258482819,14.8845,167.3,167.28,4.98786141]
[1717258483026,14.8845,167.3,167.26,4.98786141]
[1717258483325,14.8845,167.3,167.27,4.98786141]
[1717258483617,14.8845,167.3,167.28,4.98786141]
[1717258483822,14.8845,167.3,167.26,4.98786141]
[1717258484011,14.8845,167.3,167.27,4.98786141]
[1717258484209,14.8845,167.3,167.28,4.98786141]
[1717258484423,14.8845,167.3,167.26,4.98786141]
[1717258484626,14.8845,167.3,167.27,4.98786141]
[1717258484918,14.8845,167.3,167.28,4.98786141]
[1717258485111,14.8845,167.3,167.26,4.98786141]
[1717258485312,14.8845,167.3,167.27,4.98786141]
[1717258485518,14.8845,167.3,167.28,4.98786141]
[1717258485699,14.8845,167.3,167.26,4.98786141]
[1717258485904,14.8845,167.3,167.27,4.98786141]
[1717258486103,14.8845,167.3,167.28,4.98786141]
[1717258486303,14.8845,167.3,167.25,0.0843525]
[1717258486304,14.8845,167.3,167.26,4.98786141]
[1717258486525,14.8845,167.3,167.27,4.98786141]
[1717258486725,14.8845,167.3,167.28,4.98786141]
[1717258486923,14.8845,167.3,167.26,4.98786141]
[1717258487126,14.8845,167.3,167.27,4.98786141]
[1717258487324,14.8845,167.3,167.28,4.98786141]
[1717258487629,14.8845,167.3,167.25,0.0843525]
[1717258487630,14.8845,167.3,167.29,4.98786141]
[1717258488826,14.8845,167.3,167.26,4.98786141]
[1717258489017,14.8845,167.3,167.27,4.98786141]
[1717258489216,14.8845,167.3,167.28,4.98786141]
[1717258489416,14.8845,167.3,167.26,4.98786141]
[1717258489617,14.8845,167.3,167.25,0.0843525]
[1717258489618,14.8845,167.3,167.27,4.98786141]
[1717258489931,14.8845,167.3,167.28,4.98786141]
[1717258490122,14.8845,167.3,167.29,4.98786141]
[1717258490325,14.8845,167.3,167.26,4.98786141]
[1717258490517,14.8845,167.3,167.25,0.0843525]
[1717258490518,14.8845,167.3,167.27,4.98786141]
[1717258490717,14.8845,167.3,167.28,4.98786141]
[1717258490918,14.8845,167.3,167.29,4.98786141]
[1717258491120,14.8845,167.3,167.26,4.98786141]
[1717258491322,2.2117,167.29,167.27,4.98786141]
[1717258491525,2.2117,167.29,167.28,4.98786141]
[1717258491910,2.2117,167.29,167.26,4.98786141]
[1717258491911,9.56665476,167.29,167.26,4.98786141]
[1717258492135,9.56665476,167.29,167.27,4.98786141]
[1717258492337,9.56665476,167.29,167.28,4.98786141]
[1717258492913,9.56665476,167.29,167.26,4.98786141]
[1717258493115,9.56665476,167.29,167.27,4.98786141]
[1717258493116,8.3717,167.29,167.27,4.98786141]
[1717258493413,8.3717,167.29,167.28,4.98786141]
[1717258493612,8.3717,167.29,167.26,4.98786141]
[1717258493827,8.3717,167.29,167.27,4.98786141]
[1717258494019,8.3717,167.29,167.25,0.0843525]
[1717258494020,2.2117,167.29,167.28,4.98786141]
[1717258494225,8.3717,167.29,167.26,4.98786141]
[1717258494429,8.3717,167.29,167.25,0.0843525]
[1717258494430,8.3717,167.29,167.27,4.98786141]
[1717258494738,8.3717,167.29,167.28,4.98786141]
[1717258494919,8.3717,167.29,167.26,4.98786141]
[1717258495118,8.3717,167.29,167.27,4.98786141]
[1717258495335,8.3717,167.29,167.28,4.98786141]
[1717258495521,8.3717,167.29,167.26,4.98786141]
[1717258495721,8.3717,167.29,167.27,4.98786141]
[1717258495919,8.3717,167.29,167.28,4.98786141]
[1717258496323,8.3717,167.29,167.26,4.98786141]
[1717258496530,8.3717,167.29,167.27,4.98786141]
[1717258496725,8.3717,167.29,167.25,0.0843525]
[1717258496726,8.3717,167.29,167.28,4.98786141]
[1717258497131,8.3717,167.29,167.26,4.98786141]
[1717258497342,8.3717,167.29,167.27,4.98786141]
[1717258497635,8.3717,167.29,167.25,0.0843525]
[1717258497636,8.3717,167.29,167.28,4.98786141]
[1717258498019,8.7245,167.3,167.28,4.98786141]
[1717258498331,8.7245,167.3,167.29,4.98786141]
[1717258498534,8.7245,167.3,167.26,4.98786141]
[1717258498720,8.7245,167.3,167.25,0.0843525]
[1717258498721,6.16,167.29,167.27,4.98786141]
[1717258498922,6.16,167.29,167.28,4.98786141]
[1717258499121,6.16,167.29,167.26,4.98786141]
[1717258499432,6.16,167.29,167.27,4.98786141]
[1717258499642,6.16,167.29,167.28,4.98786141]
[1717258499841,2.2116,167.3,167.26,4.98786141]
[1717258500141,2.2116,167.3,167.27,4.98786141]
[1717258500347,2.2116,167.3,167.28,4.98786141]
[1717258500527,8.3716,167.3,167.26,4.98786141]
[1717258500726,8.3716,167.3,167.27,4.98786141]
[1717258500929,8.3716,167.3,167.28,4.98786141]
[1717258501132,2.2116,167.3,167.26,4.98786141]
[1717258501328,1.19495476,167.33,167.27,4.98786141]
[1717258501329,2.2112,167.33,167.27,4.98786141]
[1717258501627,2.2112,167.33,167.28,4.98786141]
[1717258501628,8.3712,167.33,167.28,4.98786141]
[1717258502242,6.16,167.32,167.28,4.98786141]
[1717258502426,8.3713,167.32,167.28,4.98786141]
[1717258502616,6.16,167.31,167.29,4.98786141]
[1717258502820,6.16,167.31,167.25,6.2443525]
[1717258502821,6.16,167.31,167.3,4.98786141]
[1717258503022,6.16,167.31,167.26,4.98786141]
[1717258503229,6.16,167.31,167.27,4.98786141]
[1717258503545,6.16,167.31,167.28,4.98786141]
[1717258503726,6.16,167.31,167.25,6.2443525]
[1717258504143,2.2113,167.32,167.25,6.2443525]
[1717258504334,2.2117,167.29,167.25,0.0843525]
[1717258504644,4.4222,167.34,167.25,6.2443525]
[1717258504842,0.17,167.33,167.25,0.0843525]
[1717258505020,2.2114,167.31,167.25,6.2443525]
[1717258505831,2.2113,167.32,167.25,6.2443525]
[1717258506338,6.16,167.31,167.25,6.2443525]
[1717258506847,8.3713,167.32,167.25,6.2443525]
[1717258508951,8.3713,167.32,167.26,6.16]
[1717258510321,2.2113,167.32,167.26,6.16]
[1717258513535,8.3713,167.32,167.26,6.16]
[1717258517143,2.2113,167.32,167.26,6.16]
[1717258519354,2.2112,167.33,167.27,6.16]
[1717258520156,2.2113,167.32,167.27,6.16]
[1717258520935,2.2113,167.32,167.26,6.16]
[1717258522632,2.211,167.34,167.27,6.2553]
[1717258522853,2.2111,167.34,167.29,6.16]
[1717258523054,2.2111,167.34,167.29,12.4153]
[1717258523265,2.2111,167.34,167.29,6.2553]
[1717258523430,2.2111,167.34,167.28,6.16]
[1717258523935,2.2111,167.34,167.33,8.97321182]
[1717258524659,2.2109,167.35,167.33,8.97321182]
[1717258525343,2.2108,167.36,167.33,8.97321182]
[1717258526654,8.8415,167.4,167.33,8.97321182]
[1717258526655,2.2107,167.37,167.33,8.97321182]
[1717258527756,2.2108,167.36,167.33,8.97321182]
[1717258532960,2.2108,167.36,167.32,6.16]
[1717258533147,2.2108,167.36,167.29,60.0]
[1717258533148,4.4205,167.41,167.33,6.1697]
[1717258533463,2.2106,167.38,167.34,6.1697]
[1717258534966,2.2107,167.37,167.34,6.1697]
[1717258542770,2.2105,167.38,167.33,6.16]
[1717258542955,8.3704,167.4,167.34,6.16]
[1717258544173,2.2104,167.39,167.34,6.16]
[1717258544368,2.2104,167.39,167.34,12.3297]
[1717258545953,2.2104,167.39,167.34,6.1697]
[1717258548859,2.2104,167.39,167.3,17.94]
[1717258549064,8.3707,167.37,167.31,6.16]
[1717258549366,8.3707,167.37,167.3,6.0639]
[1717258549567,6.16,167.37,167.3,6.0639]
[1717258549771,6.16,167.35,167.3,6.0639]
[1717258552158,6.16,167.35,167.28,6.16]
[1717258552478,6.16,167.35,167.27,60.0]
[1717258552870,6.16,167.35,167.29,6.16]
[1717258554177,2.2108,167.36,167.27,77.94]
[1717258554178,8.3708,167.36,167.3,6.16]
[1717258554765,2.2106,167.38,167.31,6.16]
[1717258554968,2.2106,167.38,167.32,6.16]
[1717258555785,2.2106,167.37,167.32,6.16]
[1717258557862,2.2108,167.36,167.29,60.0]
[1717258558066,2.2108,167.36,167.32,6.16]
[1717258558269,2.2108,167.36,167.31,6.16]
[1717258559087,2.2108,167.36,167.29,60.0]
[1717258559265,2.2108,167.36,167.31,6.16]
[1717258560690,2.2112,167.33,167.26,6.1685]
[1717258560889,8.3712,167.33,167.26,6.16]
[1717258561101,2.2113,167.32,167.26,6.16]
[1717258561673,8.3713,167.32,167.26,6.16]
[1717258561875,8.3713,167.32,167.25,0.0843525]
[1717258562086,8.3713,167.32,167.26,6.16]
[1717258562476,2.2114,167.31,167.25,0.0843525]
[1717258562683,2.2114,167.31,167.26,6.16]
[1717258563299,8.3713,167.32,167.26,6.16]
[1717258563483,2.2113,167.32,167.25,0.0843525]
[1717258563792,2.2113,167.32,167.26,11.14783359]
[1717258563978,2.2113,167.32,167.27,4.98783359]
[1717258564181,2.2113,167.32,167.28,4.98783359]
[1717258564386,2.2113,167.32,167.27,4.98783359]
[1717258564585,2.2113,167.32,167.28,4.98783359]
[1717258564789,2.2113,167.32,167.27,4.98783359]
[1717258565099,2.2113,167.32,167.28,4.98783359]
[1717258566197,2.2113,167.32,167.29,4.98783359]
[1717258566401,2.2113,167.32,167.27,4.98783359]
[1717258566601,2.2113,167.32,167.28,4.98783359]
[1717258566787,2.2113,167.32,167.27,4.98783359]
[1717258566993,2.2113,167.32,167.28,4.98783359]
[1717258566994,8.3713,167.32,167.28,4.98783359]
[1717258567192,8.3713,167.32,167.27,4.98783359]
[1717258567392,8.3713,167.32,167.28,4.98783359]
[1717258567615,2.2115,167.31,167.26,4.98783359]
[1717258567908,2.2117,167.3,167.27,4.98783359]
[1717258568088,2.2117,167.3,167.28,4.98783359]
[1717258568283,1.19495476,167.33,167.25,6.2443525]
[1717258568284,2.2117,167.29,167.26,4.98783359]
[1717258568489,2.2117,167.29,167.27,4.98786957]
[1717258568682,2.2117,167.29,167.28,4.98786957]
[1717258568995,8.3716,167.3,167.28,4.98786957]
[1717258569195,8.3716,167.3,167.29,4.98786957]
[1717258569398,14.9044,167.3,167.29,4.98786957]
[1717258569795,14.9044,167.3,167.25,0.0843525]
[1717258569796,14.9044,167.3,167.26,4.98786957]
[1717258570097,14.9044,167.3,167.27,4.98786957]
[1717258570398,2.2117,167.29,167.28,4.98786957]
[1717258571391,2.2117,167.29,167.26,4.98786957]
[1717258571604,2.2117,167.29,167.27,4.98786957]
[1717258571792,2.2117,167.29,167.26,4.98786957]
[1717258572101,2.2117,167.29,167.27,4.98786957]
[1717258572303,2.2117,167.29,167.28,4.98786957]
[1717258573806,14.9044,167.3,167.26,4.98786957]
[1717258574099,14.9044,167.3,167.27,4.98786957]
[1717258574286,14.9044,167.3,167.26,4.98786957]
[1717258574487,14.9044,167.3,167.27,4.98786957]
[1717258574702,14.9044,167.3,167.26,4.98786957]
[1717258574888,6.16,167.29,167.26,4.98786957]
[1717258575283,8.3717,167.29,167.26,4.98786957]
[1717258577707,6.16,167.29,167.26,4.98786957]
[1717258577879,14.9044,167.3,167.26,4.98786957]
[1717258578289,6.16,167.29,167.26,4.98786957]
[1717258578496,2.2118,167.28,167.26,4.98786957]
[1717258578689,2.2117,167.29,167.26,4.98786957]
[1717258579415,2.2119,167.27,167.26,4.98786957]
[1717258579716,2.2118,167.28,167.26,4.98786957]
[1717258580388,2.2119,167.27,167.26,4.98786957]
[1717258580710,2.2118,167.28,167.26,4.98786957]
[1717258581807,8.3718,167.28,167.26,4.98786957]
[1717258582492,8.3718,167.28,167.25,0.0843525]
[1717258582806,8.3718,167.28,167.19,0.831771]
[1717258582807,28.0774,167.26,167.19,0.831771]
[1717258583015,14.6388,167.2,167.19,0.831771]
[1717258583197,14.9788,167.2,167.19,5.82087086]
[1717258583396,31.82525476,167.2,167.19,0.831771]
[1717258583801,24.4703,167.2,167.19,0.831771]
[1717258584117,14.9788,167.2,167.19,0.831771]
[1717258585125,8.8188,167.2,167.19,0.831771]
[1717258585405,30.6303,167.2,167.19,0.831771]
[1717258585594,76.82525476,167.2,167.19,0.831771]
[1717258585802,82.98525476,167.2,167.19,0.831771]
[1717258587312,87.41105476,167.2,167.19,0.831771]
[1717258587813,2.3829,167.2,167.19,0.831771]
[1717258588204,8.5429,167.2,167.19,0.831771]
[1717258589213,8.7129,167.2,167.19,0.831771]
[1717258593209,1.19495476,167.23,167.19,0.831771]
[1717258593411,2.2125,167.23,167.19,0.831771]
[1717258593620,5.61905476,167.27,167.19,0.831771]
[1717258593929,8.3724,167.24,167.19,0.831771]
[1717258594103,6.16,167.24,167.19,0.831771]
[1717258594295,6.16,167.25,167.19,6.991771]
[1717258594923,2.2123,167.25,167.2,6.16]
[1717258596100,2.2123,167.24,167.2,6.16]
[1717258596717,2.2122,167.25,167.2,6.16]
[1717258597024,2.2122,167.25,167.2,12.3114]
[1717258597530,2.2123,167.24,167.2,6.1514]
[1717258597713,2.2123,167.24,167.2,12.3114]
[1717258598025,2.2123,167.24,167.2,6.1514]
[1717258598229,2.2125,167.23,167.19,0.831771]
[1717258598408,8.3725,167.23,167.19,0.831771]
[1717258599708,2.2126,167.22,167.19,0.831771]
[1717258599915,8.3727,167.21,167.19,0.831771]
[1717258600221,3.40785476,167.2,167.19,0.831771]
[1717258600423,1.19495476,167.2,167.19,0.831771]
[1717258600618,8.3729,167.2,167.19,0.831771]
[1717258600811,2.2129,167.2,167.19,0.831771]
[1717258601118,3.40785476,167.2,167.19,0.831771]
[1717258603322,2.2129,167.2,167.19,0.831771]
[1717258603529,3.40785476,167.2,167.19,0.831771]
[1717258603703,2.2129,167.2,167.19,0.831771]
[1717258603903,3.40785476,167.2,167.19,0.831771]
[1717258605029,8.3728,167.21,167.19,0.831771]
[1717258605716,8.3729,167.2,167.19,0.831771]
[1717258607136,6.16,167.2,167.19,0.831771]
[1717258607504,8.3729,167.2,167.19,0.831771]
[1717258607705,8.5429,167.2,167.19,0.831771]
[1717258608021,9.90785476,167.2,167.19,0.831771]
[1717258608521,8.7129,167.2,167.19,0.831771]
[1717258609707,31.0696,167.2,167.19,0.831771]
[1717258609913,74.3354,167.2,167.19,0.831771]
[1717258610140,105.1354,167.2,167.19,0.831771]
[1717258610731,89.0159,167.2,167.19,0.831771]
[1717258610934,64.3759,167.2,167.19,0.831771]
[1717258611322,13.2159,167.2,167.19,0.831771]
[1717258611928,20.57085476,167.2,167.19,0.831771]
[1717258614040,71.73085476,167.2,167.19,0.831771]
[1717258614733,87.73655476,167.2,167.19,0.831771]
[1717258617742,103.22685476,167.2,167.19,0.831771]
[1717258620027,127.92196719,167.2,167.19,0.831771]
[1717258620927,127.92196719,167.2,167.07,6.2132]
[1717258620928,2.2141,167.11,167.07,6.2132]
[1717258621430,3.40905476,167.11,167.07,6.2132]
[1717258621632,2.2141,167.11,167.07,6.2132]
[1717258622125,2.2141,167.11,167.07,12.3732]
[1717258622331,2.2141,167.11,167.07,6.2132]
[1717258622839,2.214,167.12,167.07,6.2132]
[1717258623051,1.19495476,167.11,167.07,6.2132]
[1717258623243,2.2145,167.08,167.02,0.831771]
[1717258623443,2.2143,167.1,167.06,6.16]
[1717258623616,1.19495476,167.13,167.02,7.208971]
[1717258623940,2.5539,167.12,167.08,6.16]
[1717258624240,2.2139,167.12,167.04,6.16]
[1717258624452,2.2139,167.12,167.02,7.208971]
[1717258624634,2.2141,167.11,167.07,6.16]
[1717258624938,6.16,167.14,167.07,6.16]
[1717258625158,2.2139,167.12,167.07,6.16]
[1717258625643,3.40875476,167.13,167.09,6.16]
[1717258625850,2.214,167.12,167.03,22.2347]
[1717258626027,2.214,167.12,167.08,6.16]
[1717258626231,2.214,167.12,167.08,12.5372]
[1717258626539,2.214,167.12,167.08,6.3772]
[1717258626720,2.214,167.12,167.04,31.2296]
[1717258626922,2.214,167.12,167.04,6.5896]